Workbook

Sheet Лист1
A1: Школа | F1: Утвердил: | G1: должность
A2: Типовое примерное меню приготавливаемых блюд | G2: фамилия
A3: Возрастная категория | E3: 7-11 лет | G3: дата | J3: 2025
H4: день | I4: месяц | J4: год
A5: Неделя | B5: День недели | C5: Прием пищи | D5: Раздел меню | E5: Блюда | F5: Вес блюда, г | G5: Белки | H5: Жиры | I5: Углеводы | J5: Калорийность | K5: № рецептуры | L5: Цена
A6: 1 | B6: 1 | C6: Завтрак | D6: гор.блюдо | E6: Каша гречневая рассыпчатая | F6: ="150" -> 150 | G6: 10.32 | H6: 6.63 | I6: 54.02 | J6: 303.27 | K6: 183
E7: Котлеты рубленные из птицы с томатным соусом | F7: ="90" -> 90 | G7: 7.96 | H7: 11.21 | I7: 11.25 | J7: 150.63 | K7: 136
D8: гор.напиток | E8: Чай с лимоном | F8: ="30" -> 30 | G8: 1.98 | H8: 0.20 | I8: 14.07 | J8: 67.17 | K8: 302
D9: хлеб | E9: Хлеб пшеничный | F9: ="200" -> 200 | G9: 0.25 | H9: 0.05 | I9: 9.54 | J9: 38.48 | K9: -
D10: фрукты | E10: Яблоки | F10: ="100" -> 100 | G10: 0.40 | H10: 0.40 | I10: 11.60 | J10: 48.68
D13: итого | F13: =SUM(F6:F12) -> 0 | G13: =SUM(G6:G12) -> 20.91 | H13: 18.49 | I13: 100.48 | J13: 608.2277827 | L13: =SUM(L6:L12) -> 0
A14: =A6 -> 1 | B14: =B6 -> 1 | C14: Обед | D14: закуска
D15: 1 блюдо
D16: 2 блюдо
D17: гарнир
D18: напиток
D19: хлеб бел.
D20: хлеб черн.
D23: итого | F23: =SUM(F14:F22) -> 0 | G23: =SUM(G14:G22) -> 0 | H23: 0 | I23: 0 | J23: 0 | L23: =SUM(L14:L22) -> 0
A24: =A6 -> 1 | B24: =B6 -> 1 | C24: Итого за день: | F24: =F13+F23 -> 0 | G24: =G13+G23 -> 20.91 | H24: 18.49 | I24: 100.48 | J24: 608.2277827 | L24: =L13+L23 -> 0
A25: 1 | B25: 2 | C25: Завтрак | D25: гор.блюдо | E25: Макаронные изделия отварные с сыром | F25: 150 | G25: 6.67 | H25: 4.68 | I25: 29.26 | J25: 186 | K25: 47/3
D27: гор.напиток | E27: Кофейный напиток | F27: 200 | G27: 3.01 | H27: 2.82 | I27: 16.60 | J27: 101 | K27: 304
D28: хлеб | E28: Хлеб пшеничный | F28: 30 | G28: 1.98 | H28: 0.20 | I28: 14.07 | J28: 67
D29: фрукты
E30: Масло сливочное | F30: 10 | G30: 0.05 | H30: 8.25 | I30: 0.08 | J30: 75 | K30: -
E31: Сок | F31: 200 | G31: 1.00 | H31: 0.20 | I31: 20.60 | J31: 86 | K31: -
D32: итого | F32: =SUM(F25:F31) -> 590 | G32: =SUM(G25:G31) -> 12.71 | H32: =SUM(H25:H31) -> 16.15 | I32: =SUM(I25:I31) -> 80.61 | J32: =SUM(J25:J31) -> 515.03 | L32: 0
A33: =A25 -> 1 | B33: =B25 -> 2 | C33: Обед | D33: закуска
D34: 1 блюдо
D35: 2 блюдо
D36: гарнир
D37: напиток
D38: хлеб бел.
D39: хлеб черн.
D42: итого | F42: =SUM(F33:F41) -> 0 | G42: =SUM(G33:G41) -> 0 | H42: =SUM(H33:H41) -> 0 | I42: =SUM(I33:I41) -> 0 | J42: =SUM(J33:J41) -> 0 | L42: 0
A43: =A25 -> 1 | B43: =B25 -> 2 | C43: Итого за день: | F43: =F32+F42 -> 590 | G43: =G32+G42 -> 12.71 | H43: =H32+H42 -> 16.15 | I43: =I32+I42 -> 80.61 | J43: =J32+J42 -> 515.03 | L43: 0
A44: 1 | B44: 3 | C44: Завтрак | D44: гор.блюдо | E44: Рагу из мяса кур | F44: 200 | G44: 14.82 | H44: 16.36 | I44: 15.99 | J44: 268.74 | K44: ="3/9" -> 3/9
D46: гор.напиток | E46: Чай с сахаром | F46: 200 | G46: 0.19 | H46: 0.04 | I46: 9.22 | J46: 36.01 | K46: 300
D47: хлеб | E47: Хлеб пшеничный | F47: 30 | G47: 1.98 | H47: 0.20 | I47: 14.07 | J47: 67.17 | K47: -
D48: фрукты | E48: Яблоки | F48: 100 | G48: 0.40 | H48: 0.40 | I48: 11.60 | J48: 48.68 | K48: -
D51: итого | F51: =SUM(F44:F50) -> 530 | G51: =SUM(G44:G50) -> 17.39 | H51: =SUM(H44:H50) -> 17 | I51: =SUM(I44:I50) -> 50.88 | J51: =SUM(J44:J50) -> 420.5971993 | L51: 0
A52: =A44 -> 1 | B52: =B44 -> 3 | C52: Обед | D52: закуска
D53: 1 блюдо
D54: 2 блюдо
D55: гарнир
D56: напиток
D57: хлеб бел.
D58: хлеб черн.
D61: итого | F61: =SUM(F52:F60) -> 0 | G61: =SUM(G52:G60) -> 0 | H61: =SUM(H52:H60) -> 0 | I61: =SUM(I52:I60) -> 0 | J61: =SUM(J52:J60) -> 0 | L61: 0
A62: =A44 -> 1 | B62: =B44 -> 3 | C62: Итого за день: | F62: =F51+F61 -> 530 | G62: =G51+G61 -> 17.39 | H62: =H51+H61 -> 17 | I62: =I51+I61 -> 50.88 | J62: =J51+J61 -> 420.5971993 | L62: 0
A63: 1 | B63: 4 | C63: Завтрак | D63: гор.блюдо | E63: Плов из грудки | F63: 200 | G63: 18.20 | H63: 32.20 | I63: 32.20 | J63: 417.00 | K63: 138
E64: Салат витаминый | F64: 60 | G64: 0.96 | H64: 3.04 | I64: 8.48 | J64: 61.83 | K64: 21
D65: гор.напиток | E65: Чай с сахаром | F65: 200 | G65: 0.19 | H65: 0.04 | I65: 9.22 | J65: 36.01 | K65: 300
D66: хлеб | E66: Хлеб пшеничный | F66: 30 | G66: 1.98 | H66: 0.20 | I66: 14.07 | J66: 67.17 | K66: -
D67: фрукты
E68: Сыр | F68: 10 | G68: 2.63 | H68: 2.66 | I68: 0.00 | J68: 35.06 | K68: -
D70: итого | F70: =SUM(F63:F69) -> 500 | G70: =SUM(G63:G69) -> 23.96 | H70: =SUM(H63:H69) -> 38.14 | I70: =SUM(I63:I69) -> 63.97 | J70: =SUM(J63:J69) -> 617.0677368 | L70: 0
A71: =A63 -> 1 | B71: =B63 -> 4 | C71: Обед | D71: закуска
D72: 1 блюдо
D73: 2 блюдо
D74: гарнир
D75: напиток
D76: хлеб бел.
D77: хлеб черн.
D80: итого | F80: =SUM(F71:F79) -> 0 | G80: =SUM(G71:G79) -> 0 | H80: =SUM(H71:H79) -> 0 | I80: =SUM(I71:I79) -> 0 | J80: =SUM(J71:J79) -> 0 | L80: 0
A81: =A63 -> 1 | B81: =B63 -> 4 | C81: Итого за день: | F81: =F70+F80 -> 500 | G81: =G70+G80 -> 23.96 | H81: =H70+H80 -> 38.14 | I81: =I70+I80 -> 63.97 | J81: =J70+J80 -> 617.0677368 | L81: 0
A82: 1 | B82: 5 | C82: Завтрак | D82: гор.блюдо | E82: Каша рисовая молочная вязкая | F82: 200 | G82: 4.48 | H82: 6.18 | I82: 31.38 | J82: 198.15 | K82: 191
D84: гор.напиток | E84: Чай с лимоном | F84: 200 | G84: 0.25 | H84: 0.05 | I84: 9.54 | J84: 38.48 | K84: 302
D85: хлеб | E85: Хлеб пшеничный | F85: 30 | G85: 1.98 | H85: 0.20 | I85: 14.07 | J85: 67.17 | K85: -
D86: фрукты | E86: Яблоки | F86: 100 | G86: 0.40 | H86: 0.40 | I86: 11.60 | J86: 48.68 | K86: -
E87: Сыр | F87: 10 | G87: 2.63 | H87: 2.66 | I87: 0.00 | J87: 35.06
K88: -
D89: итого | F89: =SUM(F82:F87) -> 540 | G89: =SUM(G82:G87) -> 9.74 | H89: =SUM(H82:H87) -> 9.49 | I89: =SUM(I82:I87) -> 66.59 | J89: =SUM(J82:J87) -> 387.5311487 | L89: =SUM(L82:L88) -> 0
A90: =A82 -> 1 | B90: =B82 -> 5 | C90: Обед | D90: закуска
D91: 1 блюдо
D92: 2 блюдо
D93: гарнир
D94: напиток
D95: хлеб бел.
D96: хлеб черн.
D99: итого | F99: =SUM(F90:F98) -> 0 | G99: =SUM(G90:G98) -> 0 | H99: =SUM(H90:H98) -> 0 | I99: =SUM(I90:I98) -> 0 | J99: =SUM(J90:J98) -> 0 | L99: 0
A100: =A82 -> 1 | B100: =B82 -> 5 | C100: Итого за день: | F100: =F89+F99 -> 540 | G100: =G89+G99 -> 9.74 | H100: =H89+H99 -> 9.49 | I100: =I89+I99 -> 66.59 | J100: =J89+J99 -> 387.5311487 | L100: 0
A101: 2 | B101: 1 | C101: Завтрак | D101: гор.блюдо | E101: Макаронные изделия отварные | F101: 180 | G101: 6.36 | H101: 3.57 | I101: 40.93 | J101: 220.73 | K101: 227
E102: Котлеты рубленные из птицы с томатным соусом | F102: 90 | G102: 7.96 | H102: 11.21 | I102: 11.25 | J102: 150.63 | K102: 136
D103: гор.напиток | E103: Чай с сахаром | F103: 200 | G103: 0.06 | H103: 0.01 | I103: 9.13 | J103: 35.01
D104: хлеб | E104: Хлеб пшеничный | F104: 30 | G104: 1.98 | H104: 0.20 | I104: 14.07 | J104: 67.17
D105: фрукты
D108: итого | F108: =SUM(F101:F107) -> 500 | G108: =SUM(G101:G107) -> 16.36 | H108: 14.99 | I108: 75.38 | J108: 473.5374961 | L108: =SUM(L101:L107) -> 0
A109: =A101 -> 2 | B109: =B101 -> 1 | C109: Обед | D109: закуска
D110: 1 блюдо
D111: 2 блюдо
D112: гарнир
D113: напиток
D114: хлеб бел.
D115: хлеб черн.
D118: итого | F118: =SUM(F109:F117) -> 0 | G118: =SUM(G109:G117) -> 0 | H118: 0 | I118: 0 | J118: 0 | L118: =SUM(L109:L117) -> 0
A119: =A101 -> 2 | B119: =B101 -> 1 | C119: Итого за день: | F119: =F108+F118 -> 500 | G119: =G108+G118 -> 16.36 | H119: =H108+H118 -> 14.99 | I119: =I108+I118 -> 75.38 | J119: =J108+J118 -> 473.5374961 | L119: 0
A120: 2 | B120: 2 | C120: Завтрак | D120: гор.блюдо | E120: Каша гречневая рассыпчатая | F120: ="150" -> 150 | G120: 6.58 | H120: 1.72 | I120: 34.47 | J120: 170.91 | K120: 187
E121: Фрикадельки из кур с томатным соусом | F121: ="90" -> 90 | G121: 5.24 | H121: 11.46 | I121: 6.62 | J121: 170.00 | K121: 134
D122: гор.напиток | E122: Чай с лимоном и сахаром | F122: ="200" -> 200 | G122: 0.16 | H122: 0.03 | I122: 10.40 | J122: 41.30 | K122: 260
D123: хлеб | E123: Хлеб пшеничный | F123: ="30" -> 30 | G123: 1.98 | H123: 0.20 | I123: 14.07 | J123: 67.17 | K123: -
D124: фрукты | E124: Яблоки | F124: ="100" -> 100 | G124: 0.40 | H124: 0.40 | I124: 11.60 | J124: 48.68
D127: итого | F127: =SUM(F120:F126) -> 0 | G127: =SUM(G120:G126) -> 14.36 | H127: 13.81 | I127: 77.16 | J127: 498.0608295 | L127: =SUM(L120:L126) -> 0
A128: =A120 -> 2 | B128: =B120 -> 2 | C128: Обед | D128: закуска
D129: 1 блюдо
D130: 2 блюдо
D131: гарнир
D132: напиток
D133: хлеб бел.
D134: хлеб черн.
D137: итого | F137: =SUM(F128:F136) -> 0 | G137: =SUM(G128:G136) -> 0 | H137: 0 | I137: 0 | J137: 0 | L137: =SUM(L128:L136) -> 0
A138: =A120 -> 2 | B138: =B120 -> 2 | C138: Итого за день: | F138: =F127+F137 -> 0 | G138: =G127+G137 -> 14.36 | H138: =H127+H137 -> 13.81 | I138: =I127+I137 -> 77.16 | J138: =J127+J137 -> 498.0608295 | L138: 0
A139: 2 | B139: 3 | C139: Завтрак | D139: гор.блюдо | E139: Плов из грудки | F139: ="200" -> 200 | G139: 18.20 | H139: 23.20 | I139: 32.20 | J139: 417.00 | K139: 138
E140: Салат из белокочанной капусты | F140: ="60" -> 60 | G140: 1.45 | H140: 3.51 | I140: 8.79 | J140: 68.67 | K140: 6
D141: гор.напиток | E141: Чай с лимоном и сахаром | F141: ="200" -> 200 | G141: 0.16 | H141: 0.03 | I141: 10.40 | J141: 41.30 | K141: 260
D142: хлеб | E142: Хлеб пшеничный | F142: ="30" -> 30 | G142: 2.37 | H142: 0.30 | I142: 15.48 | J142: 73.65
D143: фрукты | E143: Яблоки | F143: ="100" -> 100 | G143: 0.40 | H143: 0.40 | I143: 11.60 | J143: 48.68
D146: итого | F146: =SUM(F139:F145) -> 0 | G146: =SUM(G139:G145) -> 22.58 | H146: 27.44 | I146: 78.47 | J146: 649.2970063 | L146: =SUM(L139:L145) -> 0
A147: =A139 -> 2 | B147: =B139 -> 3 | C147: Обед | D147: закуска
D148: 1 блюдо
D149: 2 блюдо
D150: гарнир
D151: напиток
D152: хлеб бел.
D153: хлеб черн.
D156: итого | F156: =SUM(F147:F155) -> 0 | G156: =SUM(G147:G155) -> 0 | H156: 0 | I156: 0 | J156: 0 | L156: =SUM(L147:L155) -> 0
A157: =A139 -> 2 | B157: =B139 -> 3 | C157: Итого за день: | F157: =F146+F156 -> 0 | G157: =G146+G156 -> 22.58 | H157: =H146+H156 -> 27.44 | I157: =I146+I156 -> 78.47 | J157: =J146+J156 -> 649.2970063 | L157: 0
A158: 2 | B158: 4 | C158: Завтрак | D158: гор.блюдо | E158: Макаронные изделия отварные | F158: ="150" -> 150 | G158: 6.36 | H158: 3.57 | I158: 40.93 | J158: 220.73 | K158: 46/3
E159: Мясо кур отварное в соусе | F159: ="90" -> 90 | G159: 11.64 | H159: 11.19 | I159: 2.44 | J159: 156.81 | K159: ="2/9" -> 2/9
D160: гор.напиток | E160: Кофейный напиток с молоком | F160: ="200" -> 200 | G160: 1.41 | H160: 1.44 | I160: 6.47 | J160: 43.37 | K160: 32/1
D161: хлеб | E161: Хлеб пшеничный | F161: ="30" -> 30 | G161: 1.98 | H161: 0.20 | I161: 14.07 | J161: 67.17 | K161: -
D162: фрукты | E162: Яблоки | F162: ="100" -> 100 | G162: 0.40 | H162: 0.40 | I162: 11.60 | J162: 48.68 | K162: -
D165: итого | F165: =SUM(F158:F164) -> 0 | G165: =SUM(G158:G164) -> 21.79 | H165: 16.8 | I165: 75.51 | J165: 536.7572214 | L165: =SUM(L158:L164) -> 0
A166: =A158 -> 2 | B166: =B158 -> 4 | C166: Обед | D166: закуска
D167: 1 блюдо
D168: 2 блюдо
D169: гарнир
D170: напиток
D171: хлеб бел.
D172: хлеб черн.
D175: итого | F175: =SUM(F166:F174) -> 0 | G175: =SUM(G166:G174) -> 0 | H175: 0 | I175: 0 | J175: 0 | L175: =SUM(L166:L174) -> 0
A176: =A158 -> 2 | B176: =B158 -> 4 | C176: Итого за день: | F176: =F165+F175 -> 0 | G176: =G165+G175 -> 21.79 | H176: =H165+H175 -> 16.8 | I176: =I165+I175 -> 75.51 | J176: =J165+J175 -> 536.7572214 | L176: 0
A177: 2 | B177: 5 | C177: Завтрак | D177: гор.блюдо | E177: Картофельное пюре | F177: ="150" -> 150 | G177: 3.05 | H177: 4.76 | I177: 21.68 | J177: 140.54 | K177: 1900-05-25
E178: Котлеты рубленные из птицы с томатным соусом | F178: ="90" -> 90 | G178: 7.96 | H178: 11.21 | I178: 11.25 | J178: 150.63 | K178: 136
D179: гор.напиток | E179: Чай с сахаром | F179: ="200" -> 200 | G179: 0.19 | H179: 0.04 | I179: 9.22 | J179: 36.01 | K179: 300
D180: хлеб | E180: Хлеб пшеничный | F180: ="30" -> 30 | G180: 1.98 | H180: 0.20 | I180: 14.07 | J180: 67.17 | K180: -
D181: фрукты | E181: Яблоки | F181: ="100" -> 100 | G181: 0.40 | H181: 0.40 | I181: 11.60 | J181: 48.68 | K181: -
D184: итого | F184: =SUM(F177:F183) -> 0 | G184: =SUM(G177:G183) -> 13.58 | H184: 16.61 | I184: 67.82 | J184: 443.028689 | L184: =SUM(L177:L183) -> 0
A185: =A177 -> 2 | B185: =B177 -> 5 | C185: Обед | D185: закуска
D186: 1 блюдо
D187: 2 блюдо
D188: гарнир
D189: напиток
D190: хлеб бел.
D191: хлеб черн.
D194: итого | F194: =SUM(F185:F193) -> 0 | G194: =SUM(G185:G193) -> 0 | H194: 0 | I194: 0 | J194: 0 | L194: =SUM(L185:L193) -> 0
A195: =A177 -> 2 | B195: =B177 -> 5 | C195: Итого за день: | F195: =F184+F194 -> 0 | G195: =G184+G194 -> 13.58 | H195: =H184+H194 -> 16.61 | I195: =I184+I194 -> 67.82 | J195: =J184+J194 -> 443.028689 | L195: 0
C196: Среднее значение за период: | F196: =(F24+F43+F62+F81+F100+F119+F138+F157+F176+F195)/(IF(F24=0,0,1)+IF(F43=0,0,1)+IF(F62=0,0,1)+IF(F81=0,0,1)+IF(F100=0,0,1)+IF(F119=0,0,1)+IF(F138=0,0,1)+IF(F157=0,0,1)+IF(F176=0,0,1)+IF(F195=0,0,1)) -> 532 | G196: =(G24+G43+G62+G81+G100+G119+G138+G157+G176+G195)/(IF(G24=0,0,1)+IF(G43=0,0,1)+IF(G62=0,0,1)+IF(G81=0,0,1)+IF(G100=0,0,1)+IF(G119=0,0,1)+IF(G138=0,0,1)+IF(G157=0,0,1)+IF(G176=0,0,1)+IF(G195=0,0,1)) -> 17.338 | H196: 18.892 | I196: 73.687 | J196: 514.913511 | L196: =(L24+L43+L62+L81+L100+L119+L138+L157+L176+L195)/(IF(L24=0,0,1)+IF(L43=0,0,1)+IF(L62=0,0,1)+IF(L81=0,0,1)+IF(L100=0,0,1)+IF(L119=0,0,1)+IF(L138=0,0,1)+IF(L157=0,0,1)+IF(L176=0,0,1)+IF(L195=0,0,1)) -> 
